bitfinex/quotes_BTCUSD_20251027
["timestamp","ask_amount","ask_price","bid_price","bid_amount"]
[1761548322728,27.80327462,116000.0,115990.0,2.79933029]
[1761548322930,27.80327462,116000.0,115990.0,2.5458133]
[1761548323130,27.80327462,116000.0,115990.0,3.6116705]
[1761548323131,26.09955433,116000.0,115990.0,3.6116705]
[1761548323354,26.03110632,116000.0,115990.0,3.63408973]
[1761548323533,25.66866287,116000.0,115990.0,3.2435483]
[1761548323717,25.66866287,116000.0,115990.0,3.25235449]
[1761548323925,25.66866287,116000.0,115990.0,3.27097591]
[1761548324146,25.31877657,116000.0,115990.0,3.78958561]
[1761548324346,25.02340177,116000.0,115990.0,3.78913634]
[1761548324520,25.02340177,116000.0,115990.0,3.21255739]
[1761548324738,24.74981634,116000.0,115990.0,3.40533106]
[1761548324957,24.74981634,116000.0,115990.0,3.32323249]
[1761548325146,24.41896627,116000.0,115990.0,3.27497591]
[1761548325360,24.41896627,116000.0,115990.0,3.70286561]
[1761548325567,24.14779807,116000.0,115990.0,3.70286561]
[1761548326288,23.7043346,116000.0,115990.0,3.70286561]
[1761548326497,23.41947205,116000.0,115990.0,3.70286561]
[1761548326702,23.18033455,116000.0,115990.0,3.70286561]
[1761548327116,23.18033455,116000.0,115990.0,3.69424418]
[1761548327328,22.81145164,116000.0,115990.0,3.69424418]
[1761548327505,22.81145164,116000.0,115990.0,3.74844694]
[1761548327737,22.44025833,116000.0,115990.0,3.74844694]
[1761548328322,22.44025833,116000.0,115990.0,3.32055724]
[1761548328543,22.44029833,116000.0,115990.0,3.72055724]
[1761548328912,22.03872785,116000.0,115990.0,3.72055724]
[1761548329117,21.80117226,116000.0,115990.0,4.14833633]
[1761548329541,21.57182148,116000.0,115990.0,4.14941825]
[1761548329760,21.57182148,116000.0,115990.0,4.14833633]
[1761548330153,21.57182148,116000.0,115990.0,3.72044663]
[1761548333359,21.57182148,116000.0,115990.0,2.66409526]
[1761548333569,21.57182148,116000.0,115990.0,3.04856133]
[1761548333769,21.57182148,116000.0,115990.0,2.62993991]
[1761548333991,21.57182148,116000.0,115990.0,2.40066952]
[1761548334192,21.57182148,116000.0,115990.0,2.8615263]
[1761548334377,21.57182148,116000.0,115990.0,2.88737592]
[1761548334751,21.57182148,116000.0,115990.0,2.54737592]
[1761548335108,21.57182148,116000.0,115990.0,2.87237592]
[1761548335250,21.57182148,116000.0,115990.0,2.9085582]
[1761548335803,21.57182148,116000.0,115990.0,2.9105582]
[1761548336268,21.57182148,116000.0,115990.0,2.9085582]
[1761548336475,21.57182148,116000.0,115990.0,2.9095582]
[1761548337094,21.57182148,116000.0,115990.0,2.88678802]
[1761548337611,21.47182148,116000.0,115990.0,2.91713494]
[1761548339754,21.47182148,116000.0,115990.0,2.89128532]
[1761548339958,21.47182148,116000.0,115990.0,2.66514732]
[1761548340658,21.47182148,116000.0,115990.0,2.23725762]
[1761548340873,21.47182148,116000.0,115990.0,2.45437632]
[1761548341338,21.47182148,116000.0,115990.0,1.34590662]
[1761548341556,21.47182148,116000.0,115990.0,1.33836354]
[1761548341789,21.47182148,116000.0,115990.0,1.12975261]
[1761548342011,21.47182148,116000.0,115990.0,1.10694877]
[1761548342239,21.47182148,116000.0,115990.0,0.93466877]
[1761548342690,21.47182148,116000.0,115990.0,0.93366877]
[1761548343360,21.47182148,116000.0,115990.0,1.27366877]
[1761548343575,21.47182148,116000.0,115990.0,0.20660006]
[1761548343791,21.64423527,116000.0,115990.0,0.78868976]
[1761548344014,21.64423527,116000.0,115990.0,0.01582638]
[1761548344239,21.67009669,116000.0,115990.0,0.01582638]
[1761548344465,21.67009669,116000.0,115980.0,0.77286338]
[1761548344466,0.17245611,115980.0,115960.0,0.21357752]
[1761548344703,0.17245611,115980.0,115960.0,0.30339653]
[1761548344938,0.17245839,115970.0,115960.0,0.30339653]
[1761548345141,0.17245839,115970.0,115960.0,0.21357752]
[1761548345348,0.32665611,115980.0,115960.0,0.21357752]
[1761548346585,0.32665611,115980.0,115960.0,0.21362668]
[1761548346788,0.1542,115980.0,115970.0,0.44513553]
[1761548346992,0.32664352,115980.0,115960.0,0.70848239]
[1761548347418,0.32664352,115980.0,115960.0,0.53077368]
[1761548348557,0.18105008,115990.0,115960.0,0.95866338]
[1761548348793,0.15524,115980.0,115970.0,0.44513553]
[1761548349003,0.32768352,115980.0,115960.0,0.95866338]
[1761548349632,0.32668352,115980.0,115960.0,0.95866338]
[1761548349842,0.32668352,115980.0,115960.0,0.53077368]
[1761548350052,0.17264796,115980.0,115960.0,0.53077368]
[1761548350263,0.32688796,115980.0,115960.0,0.53077368]
[1761548350474,0.32688796,115980.0,115960.0,1.16136684]
[1761548351485,0.32688796,115980.0,115970.0,0.01724583]
[1761548351684,0.32688796,115980.0,115960.0,1.16236684]
[1761548352715,0.32788796,115980.0,115960.0,0.53177368]
[1761548354064,0.32688796,115980.0,115960.0,0.53177368]
[1761548354936,0.17245839,115970.0,115960.0,0.53177368]
[1761548355194,0.2622774,115970.0,115960.0,0.001]
[1761548355392,0.97386069,115970.0,115960.0,0.001]
[1761548355623,0.34326753,115970.0,115960.0,0.001]
[1761548355831,0.43308654,115970.0,115960.0,0.001]
[1761548356496,1.0636797,115970.0,115960.0,0.001]
[1761548356704,1.45986196,115970.0,115960.0,1e-08]
[1761548356942,0.522503,115940.0,115930.0,0.00118028]
[1761548357158,1.52173553,115940.0,115930.0,0.00118028]
[1761548357383,0.91870738,115940.0,115930.0,0.00118028]
[1761548357623,0.90870739,115940.0,115930.0,0.00118028]
[1761548357832,0.94458753,115940.0,115930.0,0.00118028]
[1761548358040,0.93458754,115940.0,115930.0,0.00118028]
[1761548358250,0.94458753,115940.0,115930.0,0.00118028]
[1761548358457,0.95158753,115940.0,115930.0,0.00118028]
[1761548358684,0.95258753,115940.0,115930.0,0.00118028]
[1761548358916,1.5731807,115940.0,115930.0,0.00118028]
[1761548359121,1.58318069,115940.0,115930.0,0.00118028]
[1761548360061,0.29620217,115940.0,115930.0,0.00118028]
[1761548360260,0.18050301,115940.0,115930.0,0.00118028]
[1761548360655,0.33474301,115940.0,115930.0,0.00118028]
[1761548361062,0.32674301,115940.0,115930.0,0.00118028]
[1761548361274,0.17350301,115940.0,115930.0,0.00118028]
[1761548361495,0.32974301,115940.0,115930.0,0.00118028]
[1761548361708,0.32874301,115940.0,115930.0,0.00118028]
[1761548362116,0.32974301,115940.0,115930.0,0.00118028]
[1761548371820,0.38548337,115940.0,115930.0,0.00118028]
[1761548372026,0.32974301,115940.0,115930.0,0.00118028]
[1761548374316,0.32970301,115940.0,115930.0,0.00118028]
[1761548374522,0.17550301,115940.0,115930.0,0.00118028]
[1761548374725,0.32970301,115940.0,115930.0,0.00118028]
[1761548375146,0.17550301,115940.0,115930.0,0.00118028]
[1761548375366,0.32970301,115940.0,115930.0,0.00118028]
[1761548376222,0.17550301,115940.0,115930.0,0.00118028]
[1761548376444,0.32970301,115940.0,115930.0,0.00118028]
[1761548376654,0.41952202,115940.0,115930.0,0.00118028]
[1761548377106,0.24701901,115940.0,115930.0,0.00118028]
[1761548377543,0.09281901,115940.0,115930.0,0.00118028]
[1761548378213,0.09281901,115940.0,115930.0,0.15538028]
[1761548378214,0.003,115940.0,115930.0,0.15538028]
[1761548380306,0.003,115940.0,115930.0,0.61175171]
[1761548380503,0.003,115940.0,115930.0,1.1242696]
[1761548381603,0.003,115940.0,115930.0,1.1471226]
[1761548381844,0.001,115940.0,115930.0,1.1471226]
[1761548382491,0.18108293,115970.0,115940.0,0.34]
[1761548382648,0.31763828,115970.0,115950.0,0.61053143]
[1761548382874,0.27090194,115970.0,115950.0,0.61053143]
[1761548383498,0.09844192,115970.0,115950.0,0.61053143]
[1761548383697,0.2719011,115970.0,115950.0,0.61053143]
[1761548383953,0.2769011,115970.0,115950.0,0.61053143]
[1761548384172,0.27590105,115970.0,115950.0,0.61053143]
[1761548384544,0.10444192,115970.0,115950.0,0.61053143]
[1761548384877,0.2769014,115970.0,115950.0,0.61053143]
[1761548385083,0.006,115970.0,115960.0,0.45637143]
[1761548386072,0.005,115970.0,115960.0,0.45637143]
[1761548386267,0.001,115970.0,115960.0,0.45637143]
[1761548386667,0.003,115970.0,115960.0,0.45637143]
[1761548387956,0.003,115970.0,115960.0,0.46489255]
[1761548388160,0.003,115970.0,115960.0,0.45637143]
[1761548388920,0.003,115970.0,115960.0,0.96884469]
[1761548389088,0.003,115970.0,115960.0,1.18247137]
[1761548389291,0.003,115970.0,115960.0,1.21281829]
[1761548389593,0.003,115970.0,115960.0,1.18247137]
[1761548390779,0.003,115970.0,115960.0,1.3026373]
[1761548390980,0.003,115970.0,115960.0,1.31596658]
[1761548391187,0.003,115970.0,115960.0,1.51596658]
[1761548391967,0.002,115970.0,115960.0,1.51596658]
[1761548392168,0.002,115970.0,115960.0,1.52448645]
[1761548392348,0.00020444,115980.0,115970.0,0.17245839]
[1761548392553,0.00020444,115980.0,115970.0,0.91291672]
[1761548392741,0.00020444,115980.0,115970.0,0.89567089]
[1761548393568,0.00020444,115980.0,115970.0,0.92601781]
[1761548393770,0.00020444,115980.0,115970.0,0.93925803]
[1761548394190,0.00020444,115980.0,115970.0,0.96817107]
[1761548394373,0.00020444,115980.0,115970.0,1.93647903]
[1761548394574,0.00020444,115980.0,115970.0,1.72901703]
[1761548396203,0.00020444,115980.0,115970.0,1.75190828]
[1761548396986,0.00020444,115980.0,115970.0,1.74425144]
[1761548399046,0.00020444,115980.0,115970.0,1.13131534]
[1761548399254,0.00020444,115980.0,115970.0,1.36337549]
[1761548399924,0.00020444,115980.0,115970.0,1.34051534]
[1761548400815,0.00024444,115980.0,115970.0,1.34051534]
[1761548401236,0.00024444,115980.0,115970.0,1.36336861]
[1761548401858,0.00024444,115980.0,115970.0,0.46237143]
[1761548402116,0.00024444,115980.0,115970.0,0.006]
[1761548402316,0.17268796,115980.0,115970.0,0.61637143]
[1761548402529,0.20719968,115980.0,115970.0,0.46237143]
[1761548402733,0.20719968,115980.0,115970.0,0.006]
[1761548402935,0.26250697,115980.0,115960.0,0.17685327]
[1761548403113,0.26250697,115980.0,115970.0,0.45637143]
[1761548403319,0.26750697,115980.0,115970.0,0.45637143]
[1761548403492,0.26750697,115980.0,115960.0,0.61037143]
[1761548403691,0.17245839,115970.0,115960.0,0.61037143]
[1761548404099,0.17245839,115970.0,115940.0,0.21362695]
[1761548404305,0.1810813,115970.0,115950.0,0.154]
[1761548404513,0.27090031,115970.0,115950.0,0.45637143]
[1761548404726,0.24086833,115980.0,115960.0,0.45637143]
[1761548404929,0.27712914,115980.0,115970.0,0.45637143]
[1761548405140,0.09506345,115980.0,115960.0,0.45637143]
[1761548405338,0.09006345,115980.0,115970.0,0.154]
[1761548405754,0.09006345,115980.0,115970.0,0.61037143]
[1761548406348,0.09206345,115980.0,115970.0,0.61037143]
[1761548406744,0.09006345,115980.0,115970.0,0.154]
[1761548406945,0.09506345,115980.0,115970.0,0.154]
[1761548407558,0.00524444,115980.0,115970.0,0.61037143]
[1761548408460,0.20524444,115980.0,115970.0,0.154]
[1761548408622,0.20524444,115980.0,115970.0,0.61037143]
[1761548409087,0.20624444,115980.0,115970.0,0.61037143]
[1761548409259,0.20624444,115980.0,115970.0,0.78282982]
[1761548409487,0.20624444,115980.0,115970.0,1.12282982]
[1761548409695,0.20624444,115980.0,115970.0,1.3136035]
[1761548410292,0.20124444,115980.0,115970.0,1.3136035]
[1761548410746,0.20124444,115980.0,115970.0,1.7136035]
[1761548411074,0.20024444,115980.0,115970.0,1.7136035]
[1761548412113,0.20024444,115980.0,115970.0,1.73645677]
[1761548413752,0.20024444,115980.0,115970.0,1.74408773]
[1761548414932,0.20024444,115980.0,115970.0,1.3427963]
[1761548415195,0.20024444,115980.0,115970.0,1.79916773]
[1761548416162,0.22026888,115980.0,115970.0,0.45343899]
[1761548416360,0.3947124,115980.0,115970.0,0.17691476]
[1761548416565,0.48453141,115980.0,115960.0,0.05343899]
[1761548416811,0.48453141,115980.0,115970.0,0.15392]
[1761548417455,0.46450697,115980.0,115970.0,0.15392]
[1761548417986,0.17247326,115960.0,115950.0,0.05343899]
[1761548418222,0.26229227,115960.0,115950.0,0.02295476]
[1761548418424,0.17250301,115940.0,115930.0,0.03181912]
[1761548418622,0.41624202,115940.0,115930.0,0.00118028]
[1761548418844,0.21870016,115930.0,115920.0,9.60968293]
[1761548419055,0.30851917,115930.0,115920.0,9.60968293]
[1761548419255,0.2623369,115930.0,115920.0,9.60968293]
[1761548420518,0.2703369,115930.0,115920.0,9.60968293]
[1761548421316,0.008,115930.0,115920.0,10.06605436]
[1761548421674,0.009,115930.0,115920.0,10.06605436]
[1761548421917,0.001,115930.0,115920.0,10.91433983]
[1761548422323,0.004,115930.0,115920.0,10.91433983]
[1761548422772,0.001,115930.0,115920.0,10.91433983]
[1761548423104,0.001,115930.0,115920.0,10.91633983]
[1761548423557,0.1724745,115960.0,115920.0,10.92496646]
[1761548423759,0.20783008,115960.0,115940.0,0.79637143]
[1761548423964,0.03535558,115960.0,115950.0,0.15396]
[1761548424743,0.17245846,115970.0,115950.0,0.68274024]
[1761548424969,0.17245846,115970.0,115950.0,0.66549143]
[1761548425523,0.001,115960.0,115950.0,0.66549143]
[1761548426056,0.17347326,115960.0,115950.0,0.66549143]
[1761548426255,0.001,115960.0,115950.0,0.66549143]
[1761548426594,0.17347326,115960.0,115950.0,0.15396]
[1761548426738,0.17248814,115950.0,115940.0,0.34]
[1761548426928,0.27093155,115950.0,115920.0,9.60968293]
[1761548427138,0.17251789,115930.0,115920.0,10.22001436]
[1761548427372,0.26232282,115940.0,115920.0,10.56001436]
[1761548428629,0.26232282,115940.0,115920.0,10.56201436]
[1761548428823,0.26232282,115940.0,115920.0,10.56001436]
[1761548429255,0.26232282,115940.0,115920.0,10.56201436]
[1761548429463,0.19226189,115970.0,115930.0,0.34]
[1761548429672,0.17247381,115960.0,115940.0,0.15396]
[1761548429831,0.42489179,115950.0,115920.0,9.76584752]
[1761548430031,0.17250301,115940.0,115920.0,9.76584752]
[1761548430231,0.42489179,115950.0,115920.0,9.76584752]
[1761548430475,0.17250442,115940.0,115920.0,10.22221895]
[1761548430706,0.23224404,115940.0,115920.0,9.76584752]
[1761548430836,0.17250442,115940.0,115920.0,9.76584752]
[1761548431487,0.17250442,115940.0,115920.0,9.76384752]
[1761548432087,0.2623369,115930.0,115920.0,9.60988752]
[1761548432582,0.4162969,115930.0,115920.0,9.60988752]
[1761548432701,0.50611591,115930.0,115920.0,9.60988752]
[1761548433550,0.50611591,115930.0,115920.0,9.39229983]
[1761548433551,1.64162772,115930.0,115920.0,9.39229983]
[1761548433779,1.64162772,115930.0,115920.0,9.30171822]
[1761548433987,1.64162772,115930.0,115920.0,9.24394478]
[1761548434198,1.64162772,115930.0,115920.0,9.2040835]
[1761548434538,4e-05,115940.0,115930.0,0.34]
[1761548434746,4e-05,115940.0,115930.0,1.38739179]
[1761548434945,4e-05,115940.0,115930.0,1.18105122]
[1761548435165,4e-05,115940.0,115930.0,1.35356911]
[1761548435466,0.26236202,115940.0,115920.0,9.2040835]
[1761548435666,0.44351899,115940.0,115920.0,9.2040835]
[1761548435888,0.29159899,115940.0,115920.0,9.2040835]
[1761548436105,0.17251789,115930.0,115920.0,9.2040835]
[1761548437178,0.2623369,115930.0,115920.0,9.2040835]
[1761548437312,0.4724969,115930.0,115920.0,9.2040835]
[1761548437529,0.53962459,115930.0,115920.0,9.2040835]
[1761548438188,0.4173769,115930.0,115920.0,9.83517472]
[1761548438394,0.4183769,115930.0,115920.0,9.2040835]
[1761548439218,0.4203769,115930.0,115920.0,9.2040835]
[1761548439621,0.2653369,115930.0,115920.0,9.2040835]
[1761548439797,0.2653369,115930.0,115920.0,10.66592741]
[1761548439798,0.003,115930.0,115920.0,10.66592741]
[1761548440022,0.003,115930.0,115920.0,9.89037718]
[1761548440258,0.003,115930.0,115920.0,9.94553718]
[1761548440467,0.003,115930.0,115920.0,10.5766284]
[1761548440672,0.002,115930.0,115920.0,10.5766284]
[1761548440878,0.002,115930.0,115920.0,10.83898019]
[1761548441413,4e-05,115940.0,115930.0,0.34]
[1761548441618,4e-05,115940.0,115930.0,0.97109122]
[1761548443197,4e-05,115940.0,115930.0,0.97709122]
[1761548444838,4e-05,115940.0,115930.0,1.23942812]
[1761548445042,4e-05,115940.0,115930.0,1.62238408]
[1761548445248,4e-05,115940.0,115930.0,1.6413618]
[1761548445657,4e-05,115940.0,115930.0,1.67754408]
[1761548445866,4e-05,115940.0,115930.0,1.87754408]
[1761548446655,8e-05,115940.0,115930.0,1.87754408]
[1761548447244,8e-05,115940.0,115930.0,1.66638408]
[1761548447464,8e-05,115940.0,115930.0,1.6412818]
[1761548448285,8e-05,115940.0,115930.0,1.4302018]
[1761548448501,8e-05,115940.0,115930.0,1.6412818]
[1761548449952,8e-05,115940.0,115930.0,1.68686313]
[1761548450138,8e-05,115940.0,115930.0,1.6412818]
[1761548450905,8e-05,115940.0,115930.0,1.4853618]
[1761548451112,8e-05,115940.0,115930.0,1.6411618]
[1761548451522,8e-05,115940.0,115930.0,1.6411218]
[1761548451720,8e-05,115940.0,115930.0,1.46860391]
[1761548451927,8e-05,115940.0,115930.0,0.74769368]
[1761548453561,8e-05,115940.0,115930.0,1.3787849]
[1761548453767,8e-05,115940.0,115930.0,0.74769368]
[1761548453992,8e-05,115940.0,115930.0,0.68245368]
[1761548454196,8e-05,115940.0,115930.0,0.69245368]
[1761548457219,0.00118008,115970.0,115930.0,0.78227269]
[1761548457434,0.00118008,115970.0,115960.0,1.37052044]
[1761548457634,0.00118008,115970.0,115960.0,1.67161945]
[1761548458758,0.00118008,115970.0,115960.0,1.68035318]
[1761548459207,0.00118008,115970.0,115960.0,1.68335318]
[1761548459648,0.00118008,115970.0,115960.0,1.72993451]
[1761548461654,0.00118008,115970.0,115960.0,1.7604841]
[1761548462397,0.00118008,115970.0,115960.0,1.65974277]
[1761548462804,0.00118008,115970.0,115960.0,1.50362277]
[1761548467184,0.00122008,115970.0,115960.0,2.25896251]
[1761548467384,0.00122008,115970.0,115960.0,1.97044551]
[1761548467554,0.00122008,115970.0,115960.0,1.79297551]
[1761548473912,0.00122008,115970.0,115960.0,1.51865451]
[1761548474088,0.00122008,115970.0,115960.0,1.54920757]
[1761548475586,0.00122008,115970.0,115960.0,1.16362624]
[1761548475790,0.00122008,115970.0,115960.0,0.96059992]
[1761548475991,0.15670008,115970.0,115960.0,0.96059992]
[1761548476190,0.15670008,115970.0,115960.0,1.30059992]
[1761548483766,0.15670008,115970.0,115960.0,1.29959992]
[1761548484291,0.32915847,115970.0,115960.0,1.29959992]
[1761548484497,0.15670008,115970.0,115960.0,1.29959992]
[1761548484696,0.15670008,115970.0,115960.0,1.29659992]
[1761548485318,0.32915847,115970.0,115960.0,1.29659992]
[1761548485820,0.15670008,115970.0,115960.0,1.29659992]
[1761548486037,0.32915847,115970.0,115960.0,1.29659992]
[1761548486248,0.15670008,115970.0,115960.0,1.29659992]
[1761548486449,0.32915847,115970.0,115960.0,1.29659992]
[1761548486886,0.15670008,115970.0,115960.0,1.29659992]
[1761548487066,0.32915847,115970.0,115960.0,1.29659992]
[1761548487470,0.15670008,115970.0,115960.0,1.29659992]
[1761548488312,0.32915847,115970.0,115960.0,1.29659992]
[1761548489245,0.32915847,115970.0,115960.0,0.6655087]
[1761548489449,0.15670008,115970.0,115960.0,1.29659992]
[1761548491758,0.15670008,115970.0,115960.0,1.12147027]
[1761548493292,0.32915847,115970.0,115960.0,1.08528799]
[1761548493496,0.32915847,115970.0,115960.0,0.6651087]
[1761548493674,0.00122008,115970.0,115960.0,1.12107027]
[1761548493833,0.32855847,115970.0,115960.0,1.12107027]
[1761548494447,0.32855847,115970.0,115960.0,0.6651087]
[1761548494636,0.32855847,115970.0,115960.0,1.12107027]
[1761548502118,0.35322241,115970.0,115960.0,0.6651087]
[1761548502339,0.17248814,115950.0,115940.0,0.04558133]
[1761548502547,0.17250301,115940.0,115930.0,0.04558133]
[1761548502744,0.17251789,115930.0,115920.0,9.24966483]
[1761548502947,0.32771789,115930.0,115920.0,9.24966483]
[1761548503363,0.32771789,115930.0,115920.0,9.58966483]
[1761548503769,0.32771789,115930.0,115920.0,10.28063776]
[1761548503770,0.17251789,115930.0,115920.0,10.28063776]
[1761548504101,0.38287789,115930.0,115920.0,10.34189434]
[1761548504258,0.38287789,115930.0,115920.0,10.00189434]
[1761548504640,0.38287789,115930.0,115920.0,10.34189434]
[1761548504848,0.18111254,115950.0,115930.0,0.34]
[1761548505045,0.38282301,115940.0,115930.0,0.93182302]
[1761548506476,0.38382301,115940.0,115930.0,0.93182302]
[1761548507672,0.38382301,115940.0,115930.0,0.84200401]
[1761548508309,0.38382301,115940.0,115930.0,0.38604244]
[1761548508504,0.17251789,115930.0,115920.0,9.25012594]
[1761548508704,0.17251789,115930.0,115920.0,10.04608751]
[1761548509650,0.001,115930.0,115920.0,10.04608751]
[1761548509892,0.17351789,115930.0,115920.0,10.04608751]
[1761548510249,0.38379789,115930.0,115920.0,10.04608751]
[1761548511067,0.38383789,115930.0,115920.0,10.04608751]
[1761548512209,0.38383789,115930.0,115920.0,10.00004507]
[1761548512956,0.38383789,115930.0,115920.0,9.5440835]
[1761548514897,0.17355789,115930.0,115920.0,9.5440835]
[1761548515214,0.38371789,115930.0,115920.0,10.00004507]
[1761548515982,0.38371789,115930.0,115920.0,9.5440835]
[1761548516380,0.38371789,115930.0,115920.0,9.2040835]
[1761548516596,0.43933998,115930.0,115920.0,9.2040835]
[1761548517001,0.38371789,115930.0,115920.0,9.2040835]
[1761548519125,0.38355789,115930.0,115920.0,9.2040835]
[1761548522132,0.38347789,115930.0,115920.0,9.2040835]
[1761548522984,0.00104,115930.0,115920.0,10.663661]
[1761548523234,0.00104,115930.0,115920.0,11.17322782]
[1761548523447,0.00104,115930.0,115920.0,10.44307025]
[1761548523659,0.00104,115930.0,115920.0,10.64411282]
[1761548524304,0.00104,115930.0,115920.0,10.96650482]
[1761548524487,0.00104,115930.0,115920.0,10.84411282]
[1761548525102,0.00104,115930.0,115920.0,10.64411282]
[1761548525529,0.00104,115930.0,115920.0,10.47158004]
[1761548525762,0.00104,115930.0,115920.0,10.64411282]
[1761548528211,0.00104,115930.0,115920.0,10.69015526]
[1761548529260,0.00104,115930.0,115920.0,10.51762248]
[1761548529465,0.00104,115930.0,115920.0,10.69015526]
[1761548529668,0.00104,115930.0,115920.0,11.34611683]
[1761548529827,0.00104,115930.0,115920.0,10.69015526]
[1761548530455,0.00104,115930.0,115920.0,10.64411282]
[1761548530865,0.00104,115930.0,115920.0,10.84411282]
[1761548531072,0.00104,115930.0,115920.0,10.84511282]
[1761548531659,0.00104,115930.0,115920.0,10.64511282]
[1761548531841,4e-05,115930.0,115920.0,10.69114362]
[1761548532044,4e-05,115930.0,115920.0,10.78390362]
[1761548532248,4e-05,115930.0,115920.0,10.69314362]
[1761548533602,4e-05,115930.0,115920.0,10.71901094]
[1761548533937,4e-05,115930.0,115920.0,10.52823726]
[1761548534076,4e-05,115930.0,115920.0,10.71901094]
[1761548534991,4e-05,115930.0,115920.0,10.67298014]
[1761548536409,4e-05,115930.0,115920.0,10.86298014]
[1761548538617,4e-05,115930.0,115920.0,10.16044736]
[1761548538818,4e-05,115930.0,115920.0,10.13458004]
[1761548539227,4e-05,115930.0,115920.0,10.47458004]
[1761548539689,4e-05,115930.0,115920.0,10.43839776]
[1761548540451,4e-05,115930.0,115920.0,10.28363776]
[1761548540684,0.17255789,115930.0,115920.0,9.94363776]
[1761548541140,0.17255789,115930.0,115920.0,10.28363776]
[1761548541536,0.17255789,115930.0,115920.0,10.28163776]
[1761548541760,0.17355789,115930.0,115920.0,10.28163776]
[1761548541954,0.17355789,115930.0,115920.0,10.28063776]
[1761548542389,0.17355789,115930.0,115920.0,10.28163776]
[1761548542574,0.17355789,115930.0,115920.0,10.09086408]
[1761548542910,0.17355789,115930.0,115920.0,10.08986408]
[1761548543050,0.17355789,115930.0,115920.0,9.82467619]
[1761548543389,0.17355789,115930.0,115920.0,10.19081875]
[1761548543558,0.18368869,115930.0,115920.0,10.19081875]
[1761548543761,0.17355789,115930.0,115920.0,10.19081875]
[1761548545492,0.17355789,115930.0,115920.0,10.19102075]
[1761548545697,0.17355789,115930.0,115920.0,10.21696029]
[1761548546146,0.17355789,115930.0,115920.0,9.73505918]
[1761548546346,0.17355789,115930.0,115920.0,10.21696029]
[1761548548051,0.17355789,115930.0,115920.0,10.6988614]
[1761548549247,0.32895789,115930.0,115920.0,10.6988614]
[1761548552760,0.32879789,115930.0,115920.0,10.6988614]
[1761548553803,0.32879789,115930.0,115920.0,10.16335609]
[1761548556222,0.17355789,115930.0,115920.0,10.16335609]
[1761548556593,0.32871789,115930.0,115920.0,10.16335609]
[1761548557342,0.17355789,115930.0,115920.0,10.16335609]
[1761548557542,0.00104,115930.0,115920.0,11.04530707]
[1761548557744,0.00104,115930.0,115920.0,10.87277429]
[1761548557944,0.00104,115930.0,115920.0,11.04530707]
[1761548561407,0.00104,115930.0,115920.0,11.29138639]
[1761548563658,0.00104,115930.0,115920.0,11.24530707]
[1761548565052,0.00104,115930.0,115920.0,11.04530707]
[1761548566615,0.00104,115930.0,115920.0,11.09137958]
[1761548566836,0.00104,115930.0,115920.0,9.8709507]
[1761548567038,0.00104,115930.0,115920.0,10.29924761]
[1761548567399,0.00104,115930.0,115920.0,10.72754452]
[1761548568721,0.00104,115930.0,115920.0,10.29924761]
[1761548569297,0.00095374,115930.0,115920.0,10.29924761]
[1761548570335,0.17347163,115930.0,115920.0,10.29924761]
[1761548571100,0.17347163,115930.0,115920.0,10.2531751]
[1761548572252,0.00095374,115930.0,115920.0,10.2531751]
[1761548572466,0.00095374,115930.0,115920.0,10.27735561]
[1761548573046,0.00095374,115930.0,115920.0,10.2312831]
[1761548573336,0.00045374,115930.0,115920.0,10.2312831]
[1761548574224,0.00045374,115930.0,115920.0,10.22799366]
[1761548576610,0.00045374,115930.0,115920.0,10.40052644]
[1761548576811,0.00045374,115930.0,115920.0,10.82882335]
[1761548577138,0.00045374,115930.0,115920.0,11.90349654]
[1761548577311,0.00045374,115930.0,115920.0,12.34715311]
[1761548577504,0.00045374,115930.0,115920.0,12.28589653]
[1761548577774,0.00045374,115930.0,115920.0,12.37328404]
[1761548578122,0.01,115960.0,115950.0,0.36326182]
[1761548578347,0.01,115960.0,115950.0,1.52015465]
[1761548578501,0.01,115960.0,115950.0,1.09185774]
[1761548580592,0.011,115960.0,115950.0,1.52015465]
[1761548581092,0.011,115960.0,115950.0,1.96598665]
[1761548581253,0.011,115960.0,115950.0,2.320743]
[1761548581871,0.011,115960.0,115950.0,2.270456]
[1761548582441,0.011,115960.0,115950.0,2.25021398]
[1761548582626,0.01004,115960.0,115950.0,2.25021398]
[1761548582787,0.01004,115960.0,115950.0,1.92219698]
[1761548586674,0.01004,115960.0,115950.0,1.5209433]
[1761548586838,0.01004,115960.0,115950.0,1.92183698]
[1761548587049,0.01004,115960.0,115950.0,1.8856547]
[1761548587255,0.01004,115960.0,115950.0,1.45735779]
[1761548587492,0.01004,115960.0,115950.0,1.46768002]
[1761548587646,0.01004,115960.0,115950.0,1.89597693]
[1761548588737,0.01004,115960.0,115950.0,1.46768002]
[1761548589479,0.01004,115960.0,115950.0,1.89597693]
[1761548589688,0.01004,115960.0,115950.0,2.20287793]
[1761548596651,0.01004,115960.0,115950.0,1.89597693]
[1761548603812,4e-05,115970.0,115960.0,0.81035553]
[1761548604026,0.20142447,115980.0,115970.0,3.17771125]
[1761548604237,0.20142447,115980.0,115970.0,3.42229026]
[1761548604440,0.20142447,115980.0,115970.0,3.22675626]
[1761548604644,0.20142447,115980.0,115970.0,2.62841833]
[1761548604818,0.20142447,115980.0,115970.0,2.7437447]
[1761548607218,0.20142447,115980.0,115970.0,2.78984677]
[1761548607419,0.20142447,115980.0,115970.0,2.7437447]
[1761548611287,0.20142447,115980.0,115970.0,2.78984677]
[1761548611651,0.20142447,115980.0,115970.0,2.7437447]
[1761548612052,0.20142447,115980.0,115970.0,2.8345047]
[1761548612263,0.20142447,115980.0,115970.0,2.7437447]
[1761548613796,0.20142447,115980.0,115970.0,3.33028468]
[1761548614079,21.47120827,116000.0,115990.0,0.19077368]
[1761548614265,21.47120827,116000.0,115990.0,2.99276822]
[1761548614420,21.47120827,116000.0,115990.0,3.43243682]
[1761548615015,21.47120827,116000.0,115990.0,3.451985]
[1761548615419,21.47120827,116000.0,115990.0,3.421101]
[1761548617328,21.47120827,116000.0,115990.0,3.90289226]
[1761548617527,21.47120827,116000.0,115990.0,3.421101]
[1761548617730,21.47120827,116000.0,115990.0,3.42740146]
[1761548618043,21.47120827,116000.0,115990.0,3.06150842]
[1761548618255,21.47120827,116000.0,115990.0,3.44330842]
[1761548618864,21.47120827,116000.0,115990.0,3.42732146]
[1761548619500,21.47120827,116000.0,115990.0,2.70852146]
[1761548619703,21.47161705,116000.0,115990.0,2.70852146]
[1761548619903,21.47161705,116000.0,115990.0,2.32672146]
[1761548620313,21.47161705,116000.0,115990.0,2.70852146]
[1761548620959,21.47161705,116000.0,115990.0,2.68267282]
[1761548622901,21.47161705,116000.0,115990.0,2.62755282]
[1761548623220,21.47161705,116000.0,115990.0,2.68267282]
[1761548623358,21.47161705,116000.0,115990.0,1.62232894]